[Event "NJSK 2024 C"]
[Site "Groningen, Netherlands"]
[Date "2024.05.02"]
[Round "8.2"]
[White "Ritzerveld, Noah"]
[Black "Grooten, Tommy"]
[Result "1/2-1/2"]
[TimeControl "90min/40moves + 30min + 30sec/move"]
[WhiteElo "2103"]
[BlackElo "2018"]

1. e4 {[%clk 01:30:58]} {[%emt 00:00:02]} c5 {[%clk 01:30:57]} {[%emt
00:00:03]} 2. Nf3 {[%clk 01:31:23]} {[%emt 00:00:05]} e6 {[%clk 01:31:22]}
{[%emt 00:00:05]} 3. d4 {[%clk 01:31:49]} {[%emt 00:00:04]} cxd4 {[%clk
01:31:48]} {[%emt 00:00:04]} 4. Nxd4 {[%clk 01:32:14]} {[%emt 00:00:04]} Nf6
{[%clk 01:32:15]} {[%emt 00:00:04]} 5. Nc3 {[%clk 01:32:34]} {[%emt 00:00:09]}
d6 {[%clk 01:32:43]} {[%emt 00:00:03]} 6. Be2 {[%clk 01:32:26]} {[%emt
00:00:38]} a6 {[%clk 01:32:49]} {[%emt 00:00:25]} 7. Be3 {[%clk 01:32:43]}
{[%emt 00:00:12]} Be7 {[%clk 01:31:06]} {[%emt 00:02:10]} 8. O-O {[%clk
01:32:55]} {[%emt 00:00:20]} O-O {[%clk 01:31:06]} {[%emt 00:00:29]} 9. a4
{[%clk 01:32:36]} {[%emt 00:00:50]} b6 {[%clk 01:24:01]} {[%emt 00:07:35]} 10.
f4 {[%clk 01:29:26]} {[%emt 00:03:40]} Bb7 {[%clk 01:21:01]} {[%emt 00:03:30]}
11. Bf3 {[%clk 01:27:51]} {[%emt 00:02:06]} Qc7 {[%clk 01:17:42]} {[%emt
00:03:49]} 12. f5 {[%clk 01:24:50]} {[%emt 00:03:30]} e5 {[%clk 00:59:36]}
{[%emt 00:18:37]} 13. Nb3 {[%clk 01:24:33]} {[%emt 00:00:47]} Nbd7 {[%clk
00:56:01]} {[%emt 00:04:05]} 14. g4 {[%clk 01:20:53]} {[%emt 00:04:10]} Nc5
{[%clk 00:53:33]} {[%emt 00:02:58]} 15. Nd2 {[%clk 01:20:13]} {[%emt 00:01:09]}
d5 {[%clk 00:50:52]} {[%emt 00:03:12]} 16. exd5 {[%clk 01:13:59]} {[%emt
00:06:44]} Rfd8 {[%clk 00:49:50]} {[%emt 00:01:32]} 17. g5 {[%clk 01:05:09]}
{[%emt 00:09:20]} Nxd5 {[%clk 00:50:05]} {[%emt 00:00:15]} 18. Nxd5 {[%clk
01:05:31]} {[%emt 00:00:09]} Bxd5 {[%clk 00:50:20]} {[%emt 00:00:13]} 19. Bxd5
{[%clk 01:05:06]} {[%emt 00:00:56]} Rxd5 {[%clk 00:50:35]} {[%emt 00:00:16]} 20.
Qf3 {[%clk 00:49:30]} {[%emt 00:16:05]} e4 {[%clk 00:39:24]} {[%emt 00:11:41]}
21. Qg2 {[%clk 00:44:53]} {[%emt 00:05:07]} Rad8 {[%clk 00:34:13]} {[%emt
00:05:41]} 22. b4 {[%clk 00:40:41]} {[%emt 00:04:42]} Nd7 {[%clk 00:28:50]}
{[%emt 00:05:53]} 23. Nxe4 {[%clk 00:37:59]} {[%emt 00:03:12]} Bxb4 {[%clk
00:26:30]} {[%emt 00:02:52]} 24. g6 {[%clk 00:29:04]} {[%emt 00:09:24]} fxg6
{[%clk 00:25:00]} {[%emt 00:01:59]} 25. fxg6 {[%clk 00:29:28]} {[%emt
00:00:06]} h6 {[%clk 00:25:09]} {[%emt 00:00:21]} 26. Rf7 {[%clk 00:25:15]}
{[%emt 00:04:43]} Qe5 {[%clk 00:24:28]} {[%emt 00:01:12]} 27. Raf1 {[%clk
00:21:30]} {[%emt 00:04:14]} Re8 {[%clk 00:23:44]} {[%emt 00:01:15]} 28. Qf3
{[%clk 00:18:59]} {[%emt 00:03:01]} Qe6 {[%clk 00:20:07]} {[%emt 00:04:07]} 29.
Bc1 {[%clk 00:12:38]} {[%emt 00:06:50]} Ne5 {[%clk 00:16:03]} {[%emt 00:04:34]}
30. Qh5 {[%clk 00:09:34]} {[%emt 00:03:34]} Qxg6+ {[%clk 00:15:33]} {[%emt
00:01:00]} 31. Qxg6 {[%clk 00:09:58]} {[%emt 00:00:06]} Nxg6 {[%clk 00:15:58]}
{[%emt 00:00:05]} 32. Bb2 {[%clk 00:06:26]} {[%emt 00:04:03]} Bf8 {[%clk
00:13:51]} {[%emt 00:02:37]} 33. Ng3 {[%clk 00:06:01]} {[%emt 00:00:55]} Re7
{[%clk 00:12:32]} {[%emt 00:01:48]} 34. Rxe7 {[%clk 00:05:58]} {[%emt
00:00:33]} Nxe7 {[%clk 00:12:46]} {[%emt 00:00:16]} 35. Ne4 {[%clk 00:05:40]}
{[%emt 00:00:48]} Nc6 {[%clk 00:11:54]} {[%emt 00:01:23]} 36. Rf3 {[%clk
00:04:20]} {[%emt 00:01:49]} Nd4 {[%clk 00:11:05]} {[%emt 00:01:19]} 37. Rd3
{[%clk 00:04:36]} {[%emt 00:00:12]} Ne2+ {[%clk 00:09:45]} {[%emt 00:01:52]} 38.
Kf2 {[%clk 00:04:59]} {[%emt 00:00:07]} Rxd3 {[%clk 00:09:45]} {[%emt
00:00:31]} 39. cxd3 {[%clk 00:05:21]} {[%emt 00:00:08]} Nf4 {[%clk 00:10:13]}
{[%emt 00:00:02]} 40. Ke3 {[%clk 00:05:32]} {[%emt 00:00:18]} Ne6 {[%clk
00:10:32]} {[%emt 00:00:12]} 41. d4 {[%clk 00:05:40]} {[%emt 00:00:22]} Nc7
{[%clk 00:10:43]} {[%emt 00:00:19]} 42. Kf4 {[%clk 00:05:17]} {[%emt 00:00:52]}
Kf7 {[%clk 00:10:50]} {[%emt 00:00:23]} 43. Ke5 {[%clk 00:05:15]} {[%emt
00:00:32]} g5 {[%clk 00:09:56]} {[%emt 00:01:25]} 44. Nd6+ {[%clk 00:05:36]}
{[%emt 00:00:09]} Kg6 {[%clk 00:09:36]} {[%emt 00:00:50]} 45. Nf5 {[%clk
00:04:49]} {[%emt 00:01:16]} b5 {[%clk 00:09:27]} {[%emt 00:00:40]} 46. axb5
{[%clk 00:05:10]} {[%emt 00:00:08]} Nxb5 {[%clk 00:09:27]} {[%emt 00:00:30]} 47.
d5 {[%clk 00:05:08]} {[%emt 00:00:32]} Nd6 {[%clk 00:09:14]} {[%emt 00:00:44]}
48. Nxd6 {[%clk 00:05:13]} {[%emt 00:00:25]} Bg7+ {[%clk 00:09:40]} {[%emt
00:00:04]} 49. Ke6 {[%clk 00:04:49]} {[%emt 00:00:53]} Bxb2 {[%clk 00:10:06]}
{[%emt 00:00:05]} 50. Ne4 {[%clk 00:04:08]} {[%emt 00:01:11]} Ba3 {[%clk
00:10:23]} {[%emt 00:00:13]} 51. d6 {[%clk 00:04:28]} {[%emt 00:00:11]} Bxd6
{[%clk 00:10:48]} {[%emt 00:00:04]} 52. Nxd6 {[%clk 00:04:50]} {[%emt
00:00:07]} a5 {[%clk 00:11:02]} {[%emt 00:00:17]} 53. Ke5 {[%clk 00:04:04]}
{[%emt 00:01:15]} a4 {[%clk 00:10:18]} {[%emt 00:01:15]} 54. Kd4 {[%clk
00:02:38]} {[%emt 00:01:55]} g4 {[%clk 00:10:22]} {[%emt 00:00:26]} 55. Nc4
{[%clk 00:02:48]} {[%emt 00:00:20]} Kg5 {[%clk 00:10:12]} {[%emt 00:00:41]} 56.
Ke3 {[%clk 00:03:10]} {[%emt 00:00:08]} h5 {[%clk 00:10:07]} {[%emt 00:00:34]}
57. Kf2 {[%clk 00:03:24]} {[%emt 00:00:17]} Kf4 {[%clk 00:10:28]} {[%emt
00:00:08]} 58. Kg2 {[%clk 00:03:42]} {[%emt 00:00:12]} h4 {[%clk 00:10:51]}
{[%emt 00:00:08]} 59. Kf2 {[%clk 00:04:05]} {[%emt 00:00:07]} Ke4 {[%clk
00:10:34]} {[%emt 00:00:46]} 60. Na3 {[%clk 00:04:11]} {[%emt 00:00:24]} Kd3
{[%clk 00:10:38]} {[%emt 00:00:26]} 61. Kg2 {[%clk 00:04:19]} {[%emt 00:00:21]}
Kc3 {[%clk 00:10:45]} {[%emt 00:00:24]} 62. Kf2 {[%clk 00:04:38]} {[%emt
00:00:11]} Kb3 {[%clk 00:09:12]} {[%emt 00:02:03]} 63. Nb1 {[%clk 00:05:03]}
{[%emt 00:00:05]} Kb2 {[%clk 00:09:29]} {[%emt 00:00:13]} 64. Nd2 {[%clk
00:05:29]} {[%emt 00:00:04]} a3 {[%clk 00:09:42]} {[%emt 00:00:18]} 65. Nc4+
{[%clk 00:05:55]} {[%emt 00:00:03]} Kb3 {[%clk 00:10:08]} {[%emt 00:00:05]} 66.
Nxa3 {[%clk 00:06:21]} {[%emt 00:00:03]} Kxa3 {[%clk 00:10:34]} {[%emt
00:00:04]} 67. Ke3 {[%clk 00:06:44]} {[%emt 00:00:07]} Kb3 {[%clk 00:10:56]}
{[%emt 00:00:08]} 68. Kf4 {[%clk 00:07:08]} {[%emt 00:00:06]} g3 {[%clk
00:11:02]} {[%emt 00:00:24]} 69. hxg3 {[%clk 00:07:36]} {[%emt 00:00:02]} hxg3
{[%clk 00:11:25]} {[%emt 00:00:08]} 70. Kf3 {[%clk 00:07:57]} {[%emt 00:00:08]}
g2 {[%clk 00:11:52]} {[%emt 00:00:04]} 71. Kxg2 {[%clk 00:08:20]} {[%emt
00:00:07]} 1/2-1/2

[Event "NJSK 2024 C"]
[Site "Groningen, Netherlands"]
[Date "2024.05.02"]
[Round "8.3"]
[White "Chua, Ethan"]
[Black "Roorda, Cas"]
[Result "1-0"]
[TimeControl "90min/40moves + 30min + 30sec/move"]
[WhiteElo "2000"]
[BlackElo "1828"]

1. e4 {[%clk 01:30:29]} {[%emt 00:00:31]} c5 {[%clk 01:30:57]} {[%emt
00:00:04]} 2. Nf3 {[%clk 01:30:56]} {[%emt 00:00:03]} e6 {[%clk 01:31:24]}
{[%emt 00:00:03]} 3. d4 {[%clk 01:31:21]} {[%emt 00:00:05]} cxd4 {[%clk
01:31:51]} {[%emt 00:00:03]} 4. Nxd4 {[%clk 01:31:47]} {[%emt 00:00:03]} Nc6
{[%clk 01:32:17]} {[%emt 00:00:05]} 5. Nc3 {[%clk 01:32:10]} {[%emt 00:00:06]}
Qc7 {[%clk 01:32:44]} {[%emt 00:00:04]} 6. Be3 {[%clk 01:32:35]} {[%emt
00:00:05]} a6 {[%clk 01:33:12]} {[%emt 00:00:02]} 7. f3 {[%clk 01:33:00]}
{[%emt 00:00:06]} Nf6 {[%clk 01:33:32]} {[%emt 00:00:10]} 8. Qd2 {[%clk
01:33:09]} {[%emt 00:00:20]} Ne5 {[%clk 01:33:52]} {[%emt 00:00:10]} 9. a3
{[%clk 01:33:10]} {[%emt 00:00:29]} b5 {[%clk 01:33:37]} {[%emt 00:00:45]} 10.
Nb3 {[%clk 01:26:06]} {[%emt 00:07:34]} Bb7 {[%clk 01:23:46]} {[%emt 00:10:20]}
11. O-O-O {[%clk 01:21:18]} {[%emt 00:05:18]} b4 {[%clk 01:19:17]} {[%emt
00:05:00]} 12. axb4 {[%clk 01:13:58]} {[%emt 00:07:49]} Bxb4 {[%clk 01:19:36]}
{[%emt 00:00:12]} 13. Bd4 {[%clk 01:14:03]} {[%emt 00:00:25]} O-O {[%clk
01:06:09]} {[%emt 00:13:57]} 14. Kb1 {[%clk 00:45:22]} {[%emt 00:29:11]} Rac8
{[%clk 00:55:12]} {[%emt 00:11:27]} 15. Be2 {[%clk 00:34:46]} {[%emt 00:11:06]}
d6 {[%clk 00:52:50]} {[%emt 00:02:52]} 16. Nc1 {[%clk 00:28:50]} {[%emt
00:06:26]} Nfd7 {[%clk 00:42:58]} {[%emt 00:10:22]} 17. N1a2 {[%clk 00:28:02]}
{[%emt 00:01:17]} Bxc3 {[%clk 00:32:09]} {[%emt 00:11:19]} 18. Bxc3 {[%clk
00:23:50]} {[%emt 00:04:43]} d5 {[%clk 00:27:29]} {[%emt 00:05:10]} 19. Qd4
{[%clk 00:23:49]} {[%emt 00:00:31]} f6 {[%clk 00:25:34]} {[%emt 00:02:25]} 20.
exd5 {[%clk 00:22:46]} {[%emt 00:01:33]} Bxd5 {[%clk 00:24:31]} {[%emt
00:01:33]} 21. Nb4 {[%clk 00:21:43]} {[%emt 00:01:32]} Nb6 {[%clk 00:24:05]}
{[%emt 00:00:57]} 22. Nxa6 {[%clk 00:20:51]} {[%emt 00:01:22]} Qa7 {[%clk
00:23:20]} {[%emt 00:01:15]} 23. Ba5 {[%clk 00:20:19]} {[%emt 00:01:02]} Nec4
{[%clk 00:22:34]} {[%emt 00:01:16]} 24. Bxc4 {[%clk 00:19:57]} {[%emt
00:00:52]} Bxc4 {[%clk 00:22:58]} {[%emt 00:00:06]} 25. Qxb6 {[%clk 00:19:35]}
{[%emt 00:00:51]} Qxb6 {[%clk 00:22:52]} {[%emt 00:00:36]} 26. Bxb6 {[%clk
00:20:01]} {[%emt 00:00:05]} Bxa6 {[%clk 00:23:20]} {[%emt 00:00:02]} 27. Rd6
{[%clk 00:19:44]} {[%emt 00:00:46]} Rfe8 {[%clk 00:22:44]} {[%emt 00:01:06]} 28.
b3 {[%clk 00:19:27]} {[%emt 00:00:47]} Kf7 {[%clk 00:21:21]} {[%emt 00:01:54]}
29. c4 {[%clk 00:19:00]} {[%emt 00:00:56]} Re7 {[%clk 00:21:07]} {[%emt
00:00:44]} 30. c5 {[%clk 00:18:31]} {[%emt 00:01:00]} Bb5 {[%clk 00:21:20]}
{[%emt 00:00:17]} 31. Kb2 {[%clk 00:17:11]} {[%emt 00:01:49]} Rd7 {[%clk
00:20:08]} {[%emt 00:01:43]} 32. Rhd1 {[%clk 00:17:09]} {[%emt 00:00:31]} Rxd6
{[%clk 00:20:01]} {[%emt 00:00:37]} 33. Rxd6 {[%clk 00:15:39]} {[%emt
00:02:01]} Ra8 {[%clk 00:16:13]} {[%emt 00:04:19]} 34. c6 {[%clk 00:13:48]}
{[%emt 00:02:20]} Ke7 {[%clk 00:14:40]} {[%emt 00:02:03]} 35. Bc5 {[%clk
00:11:41]} {[%emt 00:02:38]} Rc8 {[%clk 00:12:12]} {[%emt 00:02:57]} 36. Rd7+
{[%clk 00:10:13]} {[%emt 00:01:59]} Ke8 {[%clk 00:12:39]} {[%emt 00:00:02]} 37.
Re7+ {[%clk 00:09:26]} {[%emt 00:01:16]} Kd8 {[%clk 00:13:03]} {[%emt
00:00:07]} 38. Rxg7 {[%clk 00:09:22]} {[%emt 00:00:34]} Rxc6 {[%clk 00:13:03]}
{[%emt 00:00:30]} 39. Be7+ {[%clk 00:09:37]} {[%emt 00:00:15]} Kc8 {[%clk
00:13:14]} {[%emt 00:00:19]} 40. Bxf6 {[%clk 00:08:56]} {[%emt 00:01:11]} Bd3
{[%clk 00:13:17]} {[%emt 00:00:27]} 41. Bc3 {[%clk 00:09:12]} {[%emt 00:00:12]}
Bg6 {[%clk 00:12:54]} {[%emt 00:00:54]} 42. b4 {[%clk 00:07:05]} {[%emt
00:02:38]} Rd6 {[%clk 00:12:20]} {[%emt 00:01:04]} 43. Kb3 {[%clk 00:06:14]}
{[%emt 00:01:20]} Rd7 {[%clk 00:12:38]} {[%emt 00:00:13]} 44. Rg8+ {[%clk
00:05:54]} {[%emt 00:00:49]} Rd8 {[%clk 00:12:56]} {[%emt 00:00:12]} 45. Rg7
{[%clk 00:06:00]} {[%emt 00:00:24]} Rd7 {[%clk 00:13:23]} {[%emt 00:00:04]} 46.
Kc4 {[%clk 00:05:36]} {[%emt 00:00:54]} Rxg7 {[%clk 00:13:47]} {[%emt
00:00:05]} 47. Bxg7 {[%clk 00:06:01]} {[%emt 00:00:06]} Kc7 {[%clk 00:14:00]}
{[%emt 00:00:17]} 48. Kc5 {[%clk 00:05:00]} {[%emt 00:01:31]} Bb1 {[%clk
00:12:25]} {[%emt 00:02:04]} 49. Be5+ {[%clk 00:05:19]} {[%emt 00:00:11]} Kb7
{[%clk 00:12:52]} {[%emt 00:00:04]} 50. g4 {[%clk 00:05:16]} {[%emt 00:00:32]}
Bd3 {[%clk 00:12:27]} {[%emt 00:00:55]} 51. Kd6 {[%clk 00:05:17]} {[%emt
00:00:30]} Be2 {[%clk 00:12:22]} {[%emt 00:00:36]} 52. Kxe6 {[%clk 00:05:28]}
{[%emt 00:00:18]} Bxf3 {[%clk 00:12:50]} {[%emt 00:00:01]} 53. g5 {[%clk
00:05:47]} {[%emt 00:00:12]} Kc8 {[%clk 00:12:00]} {[%emt 00:01:20]} 54. Ke7
{[%clk 00:05:50]} {[%emt 00:00:27]} Bh5 {[%clk 00:12:05]} {[%emt 00:00:25]} 55.
b5 {[%clk 00:05:45]} {[%emt 00:00:35]} Kb7 {[%clk 00:11:56]} {[%emt 00:00:39]}
56. Bd4 {[%clk 00:05:44]} {[%emt 00:00:30]} Kc8 {[%clk 00:11:33]} {[%emt
00:00:53]} 57. h4 {[%clk 00:06:00]} {[%emt 00:00:15]} Bf3 {[%clk 00:11:35]}
{[%emt 00:00:27]} 58. b6 {[%clk 00:05:45]} {[%emt 00:00:46]} Bg4 {[%clk
00:11:34]} {[%emt 00:00:31]} 59. Kf7 {[%clk 00:05:23]} {[%emt 00:00:51]} Bf5
{[%clk 00:11:28]} {[%emt 00:00:37]} 60. h5 {[%clk 00:05:38]} {[%emt 00:00:15]}
Bg4 {[%clk 00:11:48]} {[%emt 00:00:09]} 61. Kg7 {[%clk 00:05:55]} {[%emt
00:00:13]} Bxh5 {[%clk 00:12:10]} {[%emt 00:00:08]} 62. Kxh7 {[%clk 00:06:16]}
{[%emt 00:00:09]} Kb7 {[%clk 00:12:24]} {[%emt 00:00:16]} 63. g6 {[%clk
00:06:39]} {[%emt 00:00:08]} Bxg6 {[%clk 00:12:34]} {[%emt 00:00:19]} 64. Kxg6
{[%clk 00:07:04]} {[%emt 00:00:05]} Kc6 {[%clk 00:12:57]} {[%emt 00:00:08]} 65.
Kf6 {[%clk 00:07:24]} {[%emt 00:00:09]} Kd6 {[%clk 00:13:05]} {[%emt 00:00:22]}
66. Bf2 {[%clk 00:07:29]} {[%emt 00:00:25]} Kd7 {[%clk 00:13:14]} {[%emt
00:00:22]} 67. Ke5 {[%clk 00:07:49]} {[%emt 00:00:10]} Kc6 {[%clk 00:13:25]}
{[%emt 00:00:19]} 68. Ke6 {[%clk 00:08:06]} {[%emt 00:00:12]} Kb7 {[%clk
00:13:49]} {[%emt 00:00:06]} 69. Kd7 {[%clk 00:08:31]} {[%emt 00:00:05]} Ka8
{[%clk 00:13:56]} {[%emt 00:00:24]} 70. Kc6 {[%clk 00:08:51]} {[%emt 00:00:10]}
Kb8 {[%clk 00:14:17]} {[%emt 00:00:10]} 71. Bg3+ {[%clk 00:09:13]} {[%emt
00:00:07]} Kc8 {[%clk 00:14:43]} {[%emt 00:00:04]} 72. b7+ {[%clk 00:09:32]}
{[%emt 00:00:11]} 1-0

[Event "NJSK 2024 C"]
[Site "Groningen, Netherlands"]
[Date "2024.05.02"]
[Round "8.4"]
[White "De Jong, Lode"]
[Black "Terlouw, Wouter"]
[Result "1/2-1/2"]
[TimeControl "90min/40moves + 30min + 30sec/move"]
[WhiteElo "1587"]
[BlackElo "1961"]

1. d4 {[%clk 01:30:57]} {[%emt 00:00:01]} f5 {[%clk 01:30:58]} {[%emt
00:00:03]} 2. c4 {[%clk 01:31:22]} {[%emt 00:00:06]} Nf6 {[%clk 01:31:24]}
{[%emt 00:00:04]} 3. g3 {[%clk 01:31:49]} {[%emt 00:00:03]} g6 {[%clk
01:31:50]} {[%emt 00:00:04]} 4. Bg2 {[%clk 01:32:16]} {[%emt 00:00:03]} Bg7
{[%clk 01:32:16]} {[%emt 00:00:03]} 5. Nc3 {[%clk 01:32:34]} {[%emt 00:00:13]}
O-O {[%clk 01:32:39]} {[%emt 00:00:06]} 6. Nh3 {[%clk 01:33:02]} {[%emt
00:00:03]} d6 {[%clk 01:33:01]} {[%emt 00:00:07]} 7. Nf4 {[%clk 01:32:51]}
{[%emt 00:00:41]} Nc6 {[%clk 01:32:42]} {[%emt 00:00:49]} 8. d5 {[%clk
01:31:27]} {[%emt 00:01:55]} Ne5 {[%clk 01:32:59]} {[%emt 00:00:13]} 9. Qb3
{[%clk 01:30:39]} {[%emt 00:01:17]} c6 {[%clk 01:32:35]} {[%emt 00:00:54]} 10.
O-O {[%clk 01:30:40]} {[%emt 00:00:30]} h6 {[%clk 01:30:32]} {[%emt 00:02:32]}
11. c5 {[%clk 01:27:09]} {[%emt 00:04:01]} Kh7 {[%clk 01:29:23]} {[%emt
00:01:39]} 12. Rd1 {[%clk 01:22:38]} {[%emt 00:05:01]} Qc7 {[%clk 01:20:26]}
{[%emt 00:09:27]} 13. dxc6 {[%clk 01:18:59]} {[%emt 00:04:09]} bxc6 {[%clk
01:20:33]} {[%emt 00:00:23]} 14. cxd6 {[%clk 01:19:25]} {[%emt 00:00:05]} exd6
{[%clk 01:20:30]} {[%emt 00:00:32]} 15. Nb5 {[%clk 01:19:46]} {[%emt 00:00:09]}
Qe7 {[%clk 01:18:17]} {[%emt 00:02:42]} 16. Nxd6 {[%clk 01:18:57]} {[%emt
00:01:21]} Bd7 {[%clk 01:12:14]} {[%emt 00:06:32]} 17. h4 {[%clk 01:13:37]}
{[%emt 00:05:50]} Rab8 {[%clk 01:08:58]} {[%emt 00:03:46]} 18. Qc2 {[%clk
01:12:46]} {[%emt 00:01:21]} Ne8 {[%clk 01:06:18]} {[%emt 00:03:10]} 19. Nxe8
{[%clk 01:06:38]} {[%emt 00:03:57]} Rfxe8 {[%clk 01:06:35]} {[%emt 00:02:54]}
20. Be3 {[%clk 01:04:05]} {[%emt 00:03:02]} Rxb2 {[%clk 01:04:23]} {[%emt
00:02:43]} 21. Qc5 {[%clk 01:02:15]} {[%emt 00:02:20]} Ng4 {[%clk 00:47:49]}
{[%emt 00:17:03]} 22. Rxd7 {[%clk 00:57:00]} {[%emt 00:05:45]} Qxd7 {[%clk
00:46:37]} {[%emt 00:01:43]} 23. Bxc6 {[%clk 00:57:23]} {[%emt 00:00:08]} Qe7
{[%clk 00:37:51]} {[%emt 00:09:14]} 24. Bxe8 {[%clk 00:57:41]} {[%emt
00:00:13]} Qxe8 {[%clk 00:38:16]} {[%emt 00:00:05]} 25. Bd4 {[%clk 00:51:23]}
{[%emt 00:06:48]} Bxd4 {[%clk 00:38:20]} {[%emt 00:00:26]} 26. Qxd4 {[%clk
00:51:45]} {[%emt 00:00:08]} Rb7 {[%clk 00:38:27]} {[%emt 00:00:21]} 27. Rd1
{[%clk 00:46:48]} {[%emt 00:05:30]} Qf7 {[%emt 00:09:15]} 28. Nd5 {[%clk
00:40:59]} Qe6 {[%clk 00:32:54]} {[%emt 00:03:33]} 29. f3 {[%clk 00:37:20]}
{[%emt 00:04:13]} Ne5 {[%clk 00:33:09]} {[%emt 00:00:14]} 30. Nf4 {[%clk
00:33:23]} {[%emt 00:04:28]} Qf6 {[%clk 00:30:08]} {[%emt 00:03:31]} 31. Qc3
{[%clk 00:25:51]} {[%emt 00:07:56]} Ng4 {[%emt 00:14:13]} 32. Qc5 {[%clk
00:16:24]} Ne5 {[%clk 00:19:11]} {[%emt 00:07:46]} 33. Rd6 {[%clk 00:14:52]}
{[%emt 00:01:59]} Qg7 {[%clk 00:17:42]} {[%emt 00:02:02]} 34. Ne6 {[%clk
00:12:38]} {[%emt 00:02:44]} Nxf3+ {[%clk 00:12:06]} {[%emt 00:06:06]} 35. Kf2
{[%clk 00:09:07]} {[%emt 00:04:00]} Qe5 {[%clk 00:11:40]} {[%emt 00:00:56]} 36.
Kxf3 {[%clk 00:08:38]} {[%emt 00:01:00]} Qe4+ {[%clk 00:11:42]} {[%emt
00:00:28]} 37. Kf2 {[%clk 00:08:50]} {[%emt 00:00:15]} Re7 {[%clk 00:11:46]}
{[%emt 00:00:28]} 38. Qe3 {[%clk 00:06:22]} {[%emt 00:02:57]} Qxe3+ {[%clk
00:10:26]} {[%emt 00:01:52]} 39. Kxe3 {[%clk 00:06:47]} {[%emt 00:00:05]} Kg8
{[%clk 00:10:52]} {[%emt 00:00:04]} 40. Kd3 {[%clk 00:06:46]} {[%emt 00:00:31]}
Kf7 {[%clk 00:10:27]} {[%emt 00:00:55]} 41. Nc5 {[%clk 00:07:07]} {[%emt
00:00:08]} Re5 {[%clk 00:10:19]} {[%emt 00:00:38]} 42. Nb3 {[%clk 00:06:34]}
{[%emt 00:01:04]} a5 {[%clk 00:10:10]} {[%emt 00:00:39]} 43. Ra6 {[%clk
00:06:42]} {[%emt 00:00:22]} Re4 {[%clk 00:10:33]} {[%emt 00:00:07]} 44. Rxa5
{[%clk 00:05:50]} {[%emt 00:01:22]} Rg4 {[%clk 00:10:56]} {[%emt 00:00:07]} 45.
a4 {[%clk 00:05:36]} {[%emt 00:00:43]} Rxg3+ {[%clk 00:11:22]} {[%emt
00:00:05]} 46. Kc2 {[%clk 00:05:57]} {[%emt 00:00:08]} Re3 {[%clk 00:11:36]}
{[%emt 00:00:17]} 47. Ra7+ {[%clk 00:06:16]} {[%emt 00:00:12]} Kf6 {[%clk
00:12:00]} {[%emt 00:00:06]} 48. a5 {[%clk 00:06:21]} {[%emt 00:00:25]} Rxe2+
{[%clk 00:12:06]} {[%emt 00:00:23]} 49. Nd2 {[%clk 00:06:27]} {[%emt 00:00:25]}
Rh2 {[%clk 00:10:28]} {[%emt 00:02:09]} 50. a6 {[%clk 00:06:05]} {[%emt
00:00:51]} Rxh4 {[%clk 00:10:53]} {[%emt 00:00:05]} 51. Kb3 {[%clk 00:06:26]}
{[%emt 00:00:10]} Rh1 {[%clk 00:10:27]} {[%emt 00:00:55]} 52. Ka2 {[%clk
00:04:46]} {[%emt 00:02:09]} Rh4 {[%clk 00:10:12]} {[%emt 00:00:45]} 53. Ka3
{[%clk 00:05:02]} {[%emt 00:00:15]} Rd4 {[%clk 00:09:43]} {[%emt 00:00:56]} 54.
Ra8 {[%clk 00:04:06]} {[%emt 00:01:29]} Rxd2 {[%clk 00:08:06]} {[%emt
00:02:07]} 55. a7 {[%clk 00:04:30]} {[%emt 00:00:06]} Rd3+ {[%clk 00:08:32]}
{[%emt 00:00:04]} 56. Kb2 {[%clk 00:04:40]} {[%emt 00:00:20]} Rd2+ {[%clk
00:08:55]} {[%emt 00:00:07]} 57. Kc3 {[%clk 00:04:05]} {[%emt 00:01:03]} Ra2
{[%clk 00:09:18]} {[%emt 00:00:08]} 58. Rf8+ {[%clk 00:04:33]} {[%emt
00:00:02]} Kg5 {[%clk 00:09:40]} {[%emt 00:00:09]} 59. a8=Q {[%clk 00:04:58]}
{[%emt 00:00:05]} Rxa8 {[%clk 00:10:06]} {[%emt 00:00:04]} 60. Rxa8 {[%clk
00:05:21]} {[%emt 00:00:06]} Kg4 {[%clk 00:10:15]} {[%emt 00:00:22]} 61. Kd3
{[%clk 00:05:47]} {[%emt 00:00:04]} g5 {[%clk 00:09:47]} {[%emt 00:00:58]} 62.
Ke2 {[%clk 00:06:08]} {[%emt 00:00:09]} h5 {[%clk 00:09:45]} {[%emt 00:00:32]}
63. Kf2 {[%clk 00:06:32]} {[%emt 00:00:06]} Kh3 {[%clk 00:08:46]} {[%emt
00:01:28]} 64. Ra5 {[%clk 00:05:49]} {[%emt 00:01:14]} Kg4 {[%clk 00:07:45]}
{[%emt 00:01:31]} 65. Ra8 {[%clk 00:05:56]} {[%emt 00:00:22]} f4 {[%clk
00:07:20]} {[%emt 00:00:55]} 66. Kg2 {[%clk 00:05:58]} {[%emt 00:00:29]} Kf5
{[%clk 00:06:44]} {[%emt 00:01:06]} 67. Rf8+ {[%clk 00:06:09]} {[%emt
00:00:19]} Kg4 {[%clk 00:07:06]} {[%emt 00:00:08]} 68. Ra8 {[%emt 00:01:25]}
1/2-1/2